[Event "5th Sharjah Masters 2022"]
[Site "Sharjah"]
[Date "2022.05.24"]
[Round "4.29"]
[White "Adly, Ahmed"]
[Black "Baenziger, Fabian"]
[Result "1-0"]
[ECO "E06"]
[WhiteElo "2596"]
[BlackElo "2430"]
[Annotator "TA"]
[PlyCount "119"]
[EventDate "2022.05.21"]
[EventType "swiss"]
[EventCountry "UAE"]
[SourceTitle "playchess.com"]
[Source "ChessBase"]
[SourceQuality "1"]
[TimeControl "5400+30"]

{[%evp 12,119,10,14,36,-7,-14,-18,-21,-46,12,-35,-33,-35,-22,-26,-40,-29,0,0,0,0,0,0,0,-7,50,0,16,0,0,6,25,8,20,22,34,33,39,0,32,0,0,-9,-10,-34,-26,-27,-18,-23,0,-18,0,-12,0,0,0,0,30,0,0,0,0,0,0,0,0,0,102,6,6,6,15,18,108,0,0,0,51,40,106,107,80,98,123,26,45,8,8,8,16,11,31,38,154,154,293,315,262,277,244,254,711,711,670,586,29950,9885,29985,29986]} 1. d4 {[%emt 0:00:03]} d5 {[%emt 0:00:08]} 2. c4 {[%emt 0:00:09]} c6 {[%emt 0:00:09]} 3. Nf3 {[%emt 0:00:03]} Nf6 {[%emt 0:00:07]} 4. Nc3 {[%emt 0:00:13]} e6 {[%emt 0:00:30]} 5. g3 {[%emt 0:00:07]} Be7 {[%emt 0:01:10]} 6. Bg2 {[%emt 0:00:09]} O-O {[%emt 0:01:02]} 7. O-O {[%emt 0:00:19]} a5 {[%emt 0:01:55] E06: Closed Catalan: Early deviations.} 8. Qc2 $5 {[%emt 0:04:57][%mdl 4] [#] Exploring less charted territory.} dxc4 $146 {[%emt 0:10:17]} ({Predecessor:} 8... Na6 9. e4 dxc4 10. Be3 Nb4 11. Qe2 a4 12. Ne5 Nd7 13. Nxc4 b5 14. Na3 Nb6 15. Rfd1 {1-0 (37) Evdokimov,A (2558)-Ziatdinov,R (2354) New Delhi 2014}) 9. Rd1 {[%emt 0:00:16]} b5 {[%emt 0:06:05] The position is equal.} 10. Ne5 {[%emt 0:05:12][%cal Oc3b5]} Ba6 {[%emt 0:11:35]} ({Black should try} 10... Nd5 $1 $15) 11. Ne4 {[%emt 0:12:21]} (11. Bxc6 $11 Nxc6 12. Nxc6) 11... Nd5 $15 {[%emt 0:09:10]} 12. b3 {[%emt 0:02:08][%cal Rb3c4]} f6 {[%emt 0:04:38]} 13. Nf3 {[%emt 0:00:20]} cxb3 {[%emt 0:08:06]} 14. axb3 {[%emt 0:00:12]} Bc8 {[%emt 0:05:47]} (14... Nb4 $5 {[%cal Rb4c2]} 15. Qc3 Bc8 $15) 15. Bd2 {[%emt 0:06:27]} Nb4 {[%emt 0:04:52]} 16. Bxb4 {[%emt 0:09:04]} Bxb4 {[%emt 0:00:14]} 17. e3 {[%emt 0:00:01]} Na6 {[%emt 0:05:44][%cal Bb8a6,Ba6b4,Bb4d5][%mdl 32]} 18. Ne1 {[%emt 0:05:24]} Be7 {[%emt 0:08:03]} (18... Bxe1 $11 19. Rxe1 Nb4) 19. Nd3 {[%emt 0:02:58]} (19. Qxc6 $14 Rb8 20. Rdc1) 19... Bd7 {[%emt 0:03:21]} 20. Qc3 {[%emt 0:06:11][%mdl 1024] White has compensation.} Nb4 {[%emt 0:04:50]} 21. Nec5 {[%emt 0:01:26]} Nd5 {[%emt 0:01:14]} (21... Bxc5 $5 22. Qxc5 (22. Nxc5 Qe7 $11) 22... Nxd3 23. Rxd3 Ra6 $11) 22. Qd2 {[%emt 0:00:30]} b4 {[%emt 0:02:40]} 23. Na4 {[%emt 0:04:27] Pair of Knights!} Qb8 {[%emt 0:02:40]} 24. Rdc1 {[%emt 0:00:31]} Rd8 {[%emt 0:00:26]} 25. Qc2 {[%emt 0:01:56]} Ra7 {[%emt 0:01:28]} 26. Be4 {[%emt 0:00:52]} g6 {[%emt 0:02:45]} 27. Kg2 {[%emt 0:02:02]} Be8 {[%emt 0:01:58]} 28. h4 {[%emt 0:00:33]} e5 {[%emt 0:01:11]} 29. dxe5 {[%emt 0:02:01]} fxe5 {[%emt 0:00:04]} 30. Ndc5 {[%emt 0:00:02]} Bxc5 {[%emt 0:01:27]} (30... Bf7 $5 {[%cal Re7c5]}) 31. Qxc5 {[%emt 0:00:16]} Nf6 {[%emt 0:00:56]} 32. Bf3 {[%emt 0:01:18]} (32. Bxc6 $2 Rc7 33. Qc4+ Kg7 $19) 32... Rf7 {[%emt 0:01:09]} 33. Ra2 {[%emt 0:00:42]} e4 {[%emt 0:00:30]} 34. Be2 {[%emt 0:00:09]} Nd5 {[%emt 0:00:46]} 35. Bg4 {[%emt 0:14:01] Inhibits Rf5. Hoping for Be6.} Bd7 {[%emt 0:00:32] Inhibits Be6.} 36. Bxd7 {[%emt 0:00:14]} Rdxd7 {[%emt 0:00:02]} 37. Rc4 {[%emt 0:00:38]} Qe5 {[%emt 0:00:46] White must now prevent ...Qh5.} 38. Nb6 $1 {[%emt 0:00:04]} Rd8 {[%emt 0:00:32][%cal Oa5a4]} 39. Nxd5 {[%emt 0:02:35]} cxd5 {[%emt 0:00:36]} (39... Rxd5 $11 40. Qxc6 Kg7) 40. Rd4 {[%emt 0:00:55]} (40. Qxa5 $16 Rdf8 41. Rxb4) 40... Qf5 $132 {[%emt 0:00:21][%mdl 2048] Black is not holding back} 41. Kh2 {[%emt 0:00:32]} g5 {[%emt 0:00:38]} 42. hxg5 {[%emt 0:00:17]} h6 {[%emt 0:00:33]} (42... Qxg5 43. Rxe4 $1 (43. Kg1 Rf5 $14) 43... Rdf8 44. Kg2 $16 (44. Rf4 Qh5+ 45. Kg2 Rxf4 $14)) (42... Rdd7 $11 {keeps the balance.}) 43. g6 {[%emt 0:00:38]} (43. gxh6 $6 a4 44. Rad2 (44. bxa4 $2 Rf6 $19) (44. Rxb4 $2 Rc8 $19) 44... axb3 45. Rxb4 (45. Rxd5 Rxd5 46. Rxd5 Qxf2+ 47. Kh3 Qf1+ 48. Kh4 Qf6+ 49. Kh3 b2 $19) 45... Rf6 $11) ({White must play} 43. Qxa5 $16 Rfd7 44. Rad2 (44. gxh6 Rc8 $11)) 43... Rfd7 {[%emt 0:00:15]} 44. Qb5 {[%emt 0:05:53]} Qh5+ {[%emt 0:00:33]} (44... h5 $11) 45. Kg1 $14 {[%emt 0:00:09]} Rc7 {[%emt 0:00:31]} (45... Qf5 $14) 46. Ra1 $16 {[%emt 0:00:10][%cal Od4e4] Strongly threatening Rxe4!} Qf5 {[%emt 0:00:36]} 47. Qxa5 {[%emt 0:00:19]} Rcd7 {[%emt 0:00:14]} 48. Qxb4 {[%emt 0:00:18]} (48. Qc5 $16) 48... h5 $1 $11 {[%emt 0:00:06]} 49. Qe1 {[%emt 0:04:08]} (49. Rd2 $5 {[%cal Rb4d4]}) 49... h4 {[%emt 0:00:42]} 50. Rda4 {[%emt 0:00:01]} hxg3 {[%emt 0:00:57]} 51. fxg3 {[%emt 0:00:01]} Qxg6 {[%emt 0:00:12]} 52. Ra8 {[%emt 0:00:22]} Qg4 {[%emt 0:00:55] [#]} (52... Qg5 $14) 53. Qf2 $1 $16 {[%emt 0:00:20]} Kg7 {[%emt 0:00:21]} (53... d4 $16) 54. Rxd8 $18 {[%emt 0:01:17]} ({And not} 54. R8a6 Rf8 55. Qb2+ (55. Qh2 Qg5 $15) 55... d4 56. exd4 (56. Qh2 Qg5 $17) 56... Rf3 57. d5+ Kf7 $11) 54... Rxd8 {[%emt 0:00:03][%mdl 4096] Endgame KQR-KQR} 55. Rf1 {[%emt 0:00:08] Qf6+ would kill now.} Qe6 {[%emt 0:00:42] Inhibits Qf6+.} 56. Qf4 {[%emt 0:00:12]} Re8 $2 {[%emt 0:00:36]} (56... Kg6 57. Kg2 Rc8) 57. Kg2 {[%emt 0:00:01]} Qg6 {[%emt 0:00:25]} 58. Qh4 {[%emt 0:02:00] And now Rf4 would win.} Re5 {[%emt 0:00:53]} 59. Qd8 {[%emt 0:00:38] Intending Qc7+ and mate.} Qe8 {[%emt 0:00:27]} 60. Qf6+ {[%emt 0:00:28] Weighted Error Value: White=0.18 (very precise) /Black=0.47} 1-0

[Event "5th Sharjah Masters 2022"]
[Site "Sharjah"]
[Date "2022.05.24"]
[Round "4.30"]
[White "Nikolov, Momchil"]
[Black "Mchedlishvili, Mikheil"]
[Result "0-1"]
[ECO "E90"]
[WhiteElo "2454"]
[BlackElo "2595"]
[Annotator "TA"]
[PlyCount "86"]
[EventDate "2022.05.21"]
[EventType "swiss"]
[EventCountry "UAE"]
[SourceTitle "playchess.com"]
[Source "ChessBase"]
[SourceQuality "1"]
[TimeControl "5400+30"]

{[%evp 15,86,34,41,26,37,49,54,24,34,17,45,15,0,0,62,0,0,0,12,-3,-19,-187,-177,-179,-92,-96,-113,-105,-88,-112,-84,-85,-89,-87,-85,-84,-87,-112,-81,-103,-33,-34,-37,-40,-57,-128,-68,-150,-115,-122,-4,-69,-18,-37,-20,-29989,-29990,-29990,-29991,-29992,-29990,-29990,-29991,-29991,-29992,-29994,-29995,-29995,-29996,-29996,-29997,-29997,-29998]} 1. d4 {[%emt 0:00:04]} Nf6 {[%emt 0:00:18]} 2. c4 {[%emt 0:00:10]} g6 {[%emt 0:00:27]} 3. Nc3 {[%emt 0:00:22]} Bg7 {[%emt 0:00:36]} 4. e4 {[%emt 0:00:18]} d6 {[%emt 0:00:19]} 5. h3 {[%emt 0:01:35]} O-O {[%emt 0:00:42]} 6. Be3 {[%emt 0:00:16]} e5 {[%emt 0:01:11]} 7. d5 {[%emt 0:00:19]} Na6 {[%emt 0:01:21]} 8. Nf3 {[%emt 0:00:13]} Nh5 {[%emt 0:02:05]} 9. g3 {[%emt 0:01:45] E90: King's Indian: Classical: Early deviations and 6 h3.} f5 {[%emt 0:01:12]} 10. exf5 $1 {[%emt 0:01:39]} gxf5 {[%emt 0:00:49]} 11. Qd2 {[%emt 0:02:28] White is slightly better.} f4 {[%emt 0:14:56]} 12. gxf4 {[%emt 0:00:18]} Nxf4 {[%emt 0:00:37]} (12... exf4 13. Bd4 $14) 13. O-O-O {[%emt 0:02:35] [#]} Nc5 $5 $146 {[%emt 0:03:05][%mdl 8] An interesting novelty.} ({Predecessor:} 13... Kh8 14. Rg1 Bh6 15. h4 Bf5 16. Ng5 Nb4 17. Bxf4 exf4 18. a3 Na6 19. b4 Qf6 {1-0 (42) Gledura,B (2628)-Mamedov,R (2654) Chess.com INT 2021}) 14. Rg1 {[%emt 0:05:15][%cal Of3e5]} Kh8 {[%emt 0:01:00]} ({Much less strong is} 14... Nxh3 15. Bxh3 (15. Rg3 Nf4 $16) 15... Rxf3 16. Bg4 Bxg4 17. Rxg4 $16) (14... b6 $1 $11) 15. Bxc5 {[%emt 0:06:27]} (15. b4 $14 Ncd3+ 16. Bxd3 Nxd3+ 17. Qxd3 Rxf3 18. Rxg7 $1 Kxg7 19. Bh6+ Kxh6 20. Qxf3 Qg5+ 21. Kb2) 15... dxc5 $11 {[%emt 0:00:13]} 16. Qe3 {[%emt 0:00:30][%csl LRc5,LRe5]} Qe7 {[%emt 0:03:49]} 17. Ng5 {[%emt 0:07:42]} Bf5 {[%emt 0:04:33]} 18. Nge4 $2 {[%emt 0:09:23]} (18. h4 $11 {and White is okay.}) 18... Bh6 $19 {[%emt 0:03:24] A strong pair of Bishops.} 19. Kb1 {[%emt 0:06:09] [#]} Nxd5 $1 {[%emt 0:16:11][%mdl 512]} 20. Qxh6 $17 {[%emt 0:01:54]} Nxc3+ {[%emt 0:00:07][%mdl 64] Remove Defender} 21. bxc3 {[%emt 0:00:09] f3 is the strong threat.} Bxe4+ {[%emt 0:00:14]} 22. Bd3 {[%emt 0:00:16]} Bxd3+ {[%emt 0:02:37]} 23. Rxd3 {[%emt 0:00:12]} Rxf2 {[%emt 0:00:59]} 24. Rgd1 {[%emt 0:15:48]} Qf8 {[%emt 0:22:53]} 25. Qg5 {[%emt 0:11:43] Black must now prevent Rd8.} Rf5 {[%emt 0:00:58]} 26. Qh4 {[%emt 0:00:47] And now Rd8 would win.} Rf1 {[%emt 0:01:36]} 27. Qh5 {[%emt 0:07:55]} Re8 {[%emt 0:06:40]} (27... Rxd1+ $17 28. Rxd1 Re8) 28. Rxf1 $15 {[%emt 0:08:16]} Qxf1+ {[%emt 0:00:06][%mdl 4096] Endgame KQR-KQR} 29. Kc2 {[%emt 0:00:09]} Qg2+ {[%emt 0:00:44]} 30. Kd1 {[%emt 0:04:31]} (30. Kb3 $15 Qc6 31. Qf7) 30... Qc6 {[%emt 0:01:38]} (30... Re7 $17 {Threatens to win with ...Qg6.} 31. Qf5 Qh1+ 32. Kc2 Qh2+ 33. Rd2 Qf4 34. Qc8+ (34. Rd8+ $2 Kg7 $19) 34... Kg7 35. Qxb7 Qxc4) 31. Rf3 {[%emt 0:02:58]} (31. Qf7 $15) 31... Rd8+ {[%emt 0:02:24]} 32. Kc1 {[%emt 0:02:08] [#]} Qe4 {[%emt 0:02:35]} ({Black should play} 32... Qd6 $1 $17 {[%cal Rd6d1] ( -> ...Qd1+)} 33. Kb2 Rg8) 33. Rf1 {[%emt 0:01:11]} (33. Kb2 $1 $11) 33... Qe3+ {[%emt 0:02:04]} (33... Rg8 $15 34. Qf7 Qc6) 34. Kb2 $11 {[%emt 0:00:39]} b5 {[%emt 0:00:16]} (34... a5 $5 {[%cal Re3d2]} 35. Qf7 Qh6 $15) 35. cxb5 {[%emt 0:00:58][%mdl 8192]} (35. Qf5 $11 Qd2+ 36. Kb1 Qd3+ 37. Qxd3 Rxd3 38. cxb5) 35... Qd2+ {[%emt 0:01:47] Black mates.} 36. Kb3 {[%emt 0:00:13]} c4+ $1 {[%emt 0:00:19]} 37. Kb4 {[%emt 0:01:08]} Qb2+ {[%emt 0:02:09]} 38. Kc5 {[%emt 0:01:07]} Qa3+ {[%emt 0:00:13]} 39. Kxc4 {[%emt 0:00:00]} Qxa2+ {[%emt 0:00:29]} 40. Kc5 {[%emt 0:00:08]} Rd5+ {[%emt 0:01:02]} 41. Kc6 {[%emt 0:00:46]} Qc4+ {[%emt 0:00:12]} 42. Kb7 {[%emt 0:00:05]} Qxb5+ {[%emt 0:00:32]} 43. Kc8 {[%emt 0:00:29]} Qa6+ {[%emt 0:00:20] Weighted Error Value: White=0.32/Black=0.22 (precise)} 0-1

[Event "5th Sharjah Masters 2022"]
[Site "Sharjah"]
[Date "2022.05.24"]
[Round "4.31"]
[White "Badelka, Olga"]
[Black "Kuybokarov, Temur"]
[Result "1-0"]
[ECO "D85"]
[WhiteElo "2453"]
[BlackElo "2582"]
[Annotator "TA"]
[PlyCount "102"]
[EventDate "2022.05.21"]
[EventType "swiss"]
[EventCountry "UAE"]
[SourceTitle "playchess.com"]
[Source "ChessBase"]
[SourceQuality "1"]
[TimeControl "5400+30"]

{[%evp 19,102,0,10,0,0,0,0,0,0,0,0,0,0,0,0,0,0,0,0,0,0,0,0,0,0,0,0,-28,-29,-37,-30,-55,-29,-60,-59,-72,-70,-81,-64,-70,-70,-83,-83,-84,-79,-101,-79,-56,0,-50,-30,-91,-91,-101,-79,-72,-65,-81,-81,-142,-142,-142,-142,-142,-142,-171,-178,-311,-16,-13,0,0,0,0,0,0,0,0,0,0,0,0,0,0,0]} 1. d4 {[%emt 0:00:03]} Nf6 {[%emt 0:00:11]} 2. c4 {[%emt 0:00:07]} g6 {[%emt 0:00:08]} 3. Nc3 {[%emt 0:00:08]} d5 {[%emt 0:00:10]} 4. cxd5 {[%emt 0:00:12]} Nxd5 {[%emt 0:00:06]} 5. e4 {[%emt 0:00:06]} Nxc3 {[%emt 0:00:08]} 6. bxc3 {[%emt 0:00:07]} Bg7 {[%emt 0:00:07]} 7. Nf3 {[%emt 0:00:16]} c5 {[%emt 0:00:15]} 8. Bb5+ {[%emt 0:00:13]} Nc6 {[%emt 0:00:19]} 9. O-O {[%emt 0:00:19]} O-O {[%emt 0:01:11]} 10. Bxc6 $1 {[%emt 0:00:25][%mdl 4] is recently more successful than 10.Be3.} bxc6 {[%emt 0:00:06]} 11. Qc2 {[%emt 0:00:18] D85: Exchange Grünfeld: Unusual White 7th moves and lines with 7 Nf3.} cxd4 {[%emt 0:01:59]} 12. cxd4 {[%emt 0:00:14]} Bg4 {[%emt 0:00:22]} 13. Ne5 {[%emt 0:00:19]} Qxd4 {[%emt 0:00:47]} 14. Bb2 {[%emt 0:00:12][%cal Bc1b2,Bb2e5,Be5c3][%mdl 32]} Qb6 {[%emt 0:00:14]} 15. Rab1 {[%emt 0:00:14]} Bxe5 {[%emt 0:00:11]} 16. Bxe5 {[%emt 0:00:06]} Qa5 {[%emt 0:00:14]} 17. Bc3 {[%emt 0:00:10]} Qc5 {[%emt 0:00:09]} 18. Qb2 {[%emt 0:00:16]} a5 {[%emt 0:01:56]} 19. Rfc1 {[%emt 0:04:59]} Qd6 {[%emt 0:05:34]} 20. Be5 {[%emt 0:06:11]} Qd7 {[%emt 0:06:00] [#]} 21. h3 $146 {[%emt 0:21:54][%cal Bh2h3,Bh3h4,Bh4h5][%mdl 32]} ({Predecessor:} 21. Qc3 Rfd8 22. Qxc6 Rac8 23. Qxd7 Rxc1+ 24. Rxc1 Bxd7 25. Bc7 Rc8 26. Bf4 Rxc1+ 27. Bxc1 f6 28. f3 Kf7 29. a4 Bxa4 30. Bd2 Bb5 {½-½ (30) Andreikin,D (2724)-Shankland,S (2708) Belgrade 2022}) 21... Be6 {[%emt 0:04:10]} 22. Rd1 {[%emt 0:00:29]} Qa7 {[%emt 0:01:33]} 23. h4 {[%emt 0:14:30]} a4 {[%emt 0:07:54]} 24. a3 {[%emt 0:07:56]} Bb3 {[%emt 0:03:52]} 25. Rdc1 {[%emt 0:05:01]} c5 {[%emt 0:02:44][%cal Bc6c5,Bc5c4][%mdl 32]} 26. h5 {[%emt 0:02:32]} f6 {[%emt 0:06:36]} 27. Bc3 {[%emt 0:03:25]} e5 $1 {[%emt 0:02:16]} 28. Qe2 {[%emt 0:01:39]} c4 {[%emt 0:06:10]} 29. Bb4 {[%emt 0:01:19]} Rfd8 {[%emt 0:00:47]} 30. hxg6 {[%emt 0:03:56]} hxg6 {[%emt 0:00:06]} 31. Rc3 {[%emt 0:00:10]} Kg7 {[%emt 0:05:40]} 32. Rbc1 {[%emt 0:01:23]} Rd4 {[%emt 0:06:37]} 33. Rh3 {[%emt 0:01:54]} Qb7 {[%emt 0:02:40]} ({Of course not} 33... Rh8 34. Rxh8 Kxh8 35. Qg4 $11) (33... Rad8 $15) 34. Re1 {[%emt 0:03:54]} ({Much worse is} 34. Qe3 g5 35. f3 Rd3 $17) (34. Qg4 $11 Qxe4 35. Qe6) 34... Qd7 {[%emt 0:01:38] Hoping for ...Rd3.} 35. Qe3 {[%emt 0:05:13] [#]} (35. f4 $11 {keeps the balance.}) 35... g5 $1 $17 {[%emt 0:00:28]} (35... Rh8 36. Rxh8 Kxh8 37. Qh6+ Qh7 38. Qf8+ Qg8 39. Qxf6+ Qg7 40. Qe6 $18) 36. Qg3 {[%emt 0:01:03] And now Qh2 would win.} Rd3 {[%emt 0:02:31]} 37. Re3 {[%emt 0:00:03]} Rd1+ {[%emt 0:01:00]} 38. Kh2 {[%emt 0:00:31]} Rh8 {[%emt 0:06:49]} 39. Rf3 {[%emt 0:08:48]} (39. Rxh8 $142 Kxh8 40. Qh3+ Qxh3+ 41. Kxh3) 39... Rxh3+ {[%emt 0:01:42]} 40. gxh3 {[%emt 0:00:12] [#]} Bc2 $1 {[%emt 0:02:02]} 41. Re3 {[%emt 0:04:20]} Kg6 {[%emt 0:01:41]} 42. Qf3 {[%emt 0:01:13]} Rb1 {[%emt 0:01:45]} 43. h4 {[%emt 0:02:44]} (43. Qe2 {was worth a try.} Bd3 44. Qf3) 43... gxh4 $2 {[%emt 0:01:47]} (43... g4 $19 44. Qg3 Rb3) 44. Qg2+ $11 {[%emt 0:00:13] The position is equal.} Kh5 {[%emt 0:04:43]} 45. Qg8 {[%emt 0:00:34] Strongly threatening Qh8+.} Rb3 {[%emt 0:00:46] White must now prevent ...Rxe3.} 46. Bc3 {[%emt 0:02:13] Threatens to win with Qh8+. Dancing on a razor blade.} Bd1 {[%emt 0:10:38]} 47. Qh8+ {[%emt 0:00:57]} Kg5 $1 {[%emt 0:01:07]} 48. Qg8+ {[%emt 0:00:51]} Kh5 {[%emt 0:01:48]} 49. Qh8+ {[%emt 0:00:02]} Kg5 $1 {[%emt 0:01:03]} 50. Qg8+ {[%emt 0:01:01]} Kh5 {[%emt 0:01:02]} 51. Qh8+ {[%emt 0:00:03]} Kg5 $1 {[%emt 0:00:19][%mdl 32768] Weighted Error Value: White=0.12 (very precise) /Black=0.18 (very precise) . Sensor Board Error (Ke4/e5)?} 1-0

[Event "5th Sharjah Masters 2022"]
[Site "Sharjah"]
[Date "2022.05.24"]
[Round "4.32"]
[White "Dimakiling, Oliver"]
[Black "Kadric, Denis"]
[Result "0-1"]
[ECO "B00"]
[WhiteElo "2420"]
[BlackElo "2576"]
[Annotator "TA"]
[PlyCount "78"]
[EventDate "2022.05.21"]
[EventType "swiss"]
[EventCountry "UAE"]
[SourceTitle "playchess.com"]
[Source "ChessBase"]
[SourceQuality "1"]
[TimeControl "5400+30"]

{[%evp 9,78,10,29,0,-4,0,0,18,0,0,0,0,0,0,0,-7,0,0,0,-44,-38,-107,-106,-159,108,-163,-158,-156,-136,-245,-179,-175,-187,-192,-182,-287,-179,-250,-250,-362,-363,-375,-281,-356,-284,-568,-556,-669,-645,-2043,-1935,-12841,-12839,-2283,-538,-512,-510,-540,-440,-431,-402,-442,-441,-543,-484,-556,-550,-539,-532,-515,-504]} 1. e4 {[%emt 0:00:04]} d6 {[%emt 0:02:04]} 2. d4 {[%emt 0:00:09]} Nf6 {[%emt 0:00:08]} 3. Nc3 {[%emt 0:00:08]} Nc6 {[%emt 0:02:56]} 4. Bg5 {[%emt 0:00:42]} e6 {[%emt 0:01:58]} 5. f4 {[%emt 0:01:56]} Be7 {[%emt 0:04:29] [#]} 6. e5 $146 {[%emt 0:00:36] B00: Queen's Fianchetto Defence, Nimzowitsch Defence.} ({Predecessor:} 6. Nf3 d5 7. e5 Ne4 8. Bxe7 Qxe7 9. a3 Nxc3 10. bxc3 Bd7 11. Bd3 Na5 12. Qe2 {1-0 (24) Koenig,D-Shahade,M (2280) Parsippany 1998}) 6... Nd5 {[%emt 0:06:54]} 7. Bxe7 {[%emt 0:01:02]} Qxe7 {[%emt 0:00:03]} 8. Qd2 {[%emt 0:03:27] The position is equal.} dxe5 {[%emt 0:06:58]} 9. Nxd5 {[%emt 0:00:58]} exd5 {[%emt 0:00:05]} 10. dxe5 {[%emt 0:00:05]} f6 {[%emt 0:08:06]} 11. O-O-O {[%emt 0:00:29]} fxe5 {[%emt 0:00:04]} 12. fxe5 {[%emt 0:03:46]} Bf5 {[%emt 0:10:51]} (12... Qxe5 $2 13. Re1 Qe7 14. Rxe7+ $18) 13. Bb5 {[%emt 0:03:19]} Be4 {[%emt 0:01:01]} (13... Qxe5 $2 14. Nf3 Qd6 15. Rhe1+ (15. Qxd5 Qxd5 16. Rxd5 O-O $14) 15... Kf7 16. Ng5+ (16. Qxd5+ Qxd5 17. Rxd5 g6 $18) (16. Qg5 g6 $16) 16... Kg8 17. Qxd5+ Qxd5 18. Rxd5 $18) 14. Nf3 {[%emt 0:04:48]} O-O {[%emt 0:00:05][%csl LRe5,LRf3]} 15. Rhe1 {[%emt 0:03:01] [#]} (15. Ng5 $15) 15... Nb4 $1 $17 {[%emt 0:10:53]} ({Much weaker is} 15... Nxe5 $6 16. Qg5 Qxg5+ 17. Nxg5 $11) 16. Ba4 {[%emt 0:21:16]} ({Better is} 16. a3 Nxc2 17. Rxe4 dxe4 18. Qd5+ Kh8 19. Qxe4) 16... Nxa2+ {[%emt 0:05:31]} ({Don't play} 16... Bxf3 $6 17. gxf3 c6 18. c3 $11) 17. Kb1 {[%emt 0:00:06] Now White is beyond hope.} Nb4 {[%emt 0:00:06]} 18. Bb3 {[%emt 0:02:05] Hoping for Rxe4.} Kh8 {[%emt 0:01:37] Black is more active.} 19. Ng5 {[%emt 0:11:07]} (19. Qg5 $17 Rae8 20. Qh5) 19... Bg6 {[%emt 0:00:04] [#] Strongly threatening ...a5.} 20. Ne6 {[%emt 0:05:30]} Qxe6 {[%emt 0:05:46]} 21. Qxb4 {[%emt 0:00:07]} c6 {[%emt 0:00:07]} 22. Re3 {[%emt 0:12:19]} (22. Qd6 $142 Rae8 23. Rf1 Qxd6 24. exd6) 22... Rf7 {[%emt 0:05:49]} 23. Qd4 {[%emt 0:02:37]} (23. Qd6 $142 Qg4 24. Rde1) 23... a5 $19 {[%emt 0:01:44][%cal Ba7a5,Ba5a4][%mdl 32]} 24. Qb6 {[%emt 0:00:54]} (24. Rde1 {was worth a try.}) 24... Qe7 {[%emt 0:01:29]} 25. Qd4 {[%emt 0:13:02]} Raf8 {[%emt 0:04:06]} 26. g3 {[%emt 0:00:41]} Rf2 {[%emt 0:01:29] White must now prevent ...b5.} 27. h4 $2 {[%emt 0:00:45]} (27. Qa7) 27... b5 {[%emt 0:01:54] aiming for ...a4.} 28. Rc3 {[%emt 0:00:39]} a4 {[%emt 0:00:18]} 29. Ba2 {[%emt 0:00:13]} b4 {[%emt 0:00:25]} 30. Rxc6 {[%emt 0:00:45]} b3 {[%emt 0:00:11][%cal Rg6c2]} 31. Ka1 {[%emt 0:00:49]} bxa2 {[%emt 0:03:10]} (31... bxc2 $142 32. Re1 Rf1) 32. Rc1 {[%emt 0:00:43]} Re2 {[%emt 0:02:19][%cal Bf2e2,Be2e5,Be5b5,Bb5b4][%mdl 32]} 33. Qxd5 {[%emt 0:04:00]} Qxe5 {[%emt 0:00:35]} 34. Qxe5 {[%emt 0:00:24]} Rxe5 {[%emt 0:00:01]} 35. Kxa2 {[%emt 0:00:34]} Rb8 {[%emt 0:01:14] Black is clearly winning.} 36. g4 {[%emt 0:02:34]} Bf7+ {[%emt 0:00:33]} 37. Ka1 {[%emt 0:00:28]} Reb5 {[%emt 0:00:10]} 38. Rb1 {[%emt 0:00:40]} Rb4 {[%emt 0:00:02]} 39. Rc7 {[%emt 0:00:23]} Bg8 {[%emt 0:00:02] Weighted Error Value: White=0.78/Black=0.28 (precise)} 0-1

[Event "5th Sharjah Masters 2022"]
[Site "Sharjah"]
[Date "2022.05.24"]
[Round "4.33"]
[White "Sanal, Vahap"]
[Black "Hesham, Abdelrahman"]
[Result "1-0"]
[ECO "C50"]
[WhiteElo "2575"]
[BlackElo "2412"]
[Annotator "TA"]
[PlyCount "58"]
[EventDate "2022.05.21"]
[EventType "swiss"]
[EventCountry "UAE"]
[SourceTitle "playchess.com"]
[Source "ChessBase"]
[SourceQuality "1"]
[TimeControl "5400+30"]

{[%evp 9,58,13,17,15,16,12,11,8,7,4,13,6,32,23,47,43,66,18,19,0,14,5,8,23,29,32,31,35,30,27,35,21,29,30,40,16,20,27,167,160,160,154,163,103,95,89,90,89,99,88,120]} 1. e4 {[%emt 0:00:34]} e5 {[%emt 0:00:06]} 2. Nf3 {[%emt 0:01:16]} Nc6 {[%emt 0:00:06]} 3. Bc4 {[%emt 0:01:53]} Bc5 {[%emt 0:00:52]} 4. d3 {[%emt 0:00:58]} Nf6 {[%emt 0:01:10]} 5. a4 {[%emt 0:00:28]} d6 {[%emt 0:03:36]} 6. a5 {[%emt 0:00:42] C50: Hungarian Defence and Giuoco Pianissimo.} a6 {[%emt 0:00:06]} 7. O-O {[%emt 0:01:01]} Ba7 {[%emt 0:02:01]} 8. Be3 {[%emt 0:00:34] The position is equal.} O-O {[%emt 0:08:26]} 9. Bxa7 {[%emt 0:01:37]} Rxa7 {[%emt 0:00:47]} 10. Re1 {[%emt 0:03:37] [#]} Bg4 $146 {[%emt 0:08:40]} ({Predecessor:} 10... Re8 11. c3 Be6 12. Nbd2 Bxc4 13. dxc4 Ne7 14. c5 Ng6 15. Nc4 dxc5 16. Qxd8 Rxd8 17. Nfxe5 Nxe5 18. Nxe5 {1-0 (47) Obregon Rivero,J (2536)-Berdayes Ason,D (2445) Mexico City 2022}) 11. h3 {[%emt 0:00:23]} Bh5 {[%emt 0:00:17]} 12. Nbd2 {[%emt 0:00:43]} Nd4 {[%emt 0:21:32]} 13. c3 {[%emt 0:01:08]} (13. g4 $14 Nxf3+ 14. Qxf3) 13... Nxf3+ $11 {[%emt 0:00:51]} 14. Nxf3 {[%emt 0:00:09]} c6 {[%emt 0:00:19]} 15. Bb3 {[%emt 0:02:38]} Nd7 {[%emt 0:01:11]} 16. d4 {[%emt 0:00:53]} Qe7 {[%emt 0:02:39]} 17. Qd3 {[%emt 0:03:00]} Bxf3 {[%emt 0:01:08]} 18. Qxf3 {[%emt 0:00:08]} Raa8 {[%emt 0:00:09]} 19. Ba2 {[%emt 0:06:42]} g6 {[%emt 0:00:35]} 20. Rad1 {[%emt 0:00:21]} Kg7 {[%emt 0:00:24]} 21. b4 {[%emt 0:02:56]} Nf6 {[%emt 0:05:13]} 22. g3 {[%emt 0:02:25]} Rfe8 {[%emt 0:00:36]} 23. Kg2 {[%emt 0:02:54]} d5 {[%emt 0:05:09] [#]} (23... Qc7 $11 {and Black stays safe.}) 24. dxe5 $1 $18 {[%emt 0:05:23]} ({Not} 24. exd5 e4 25. Qe2 Nxd5 $15) 24... Nxe4 {[%emt 0:00:38]} 25. c4 {[%emt 0:00:41]} Ng5 {[%emt 0:03:23] [#]} ({Less strong is} 25... Qxe5 26. cxd5 f5 27. dxc6 bxc6 28. Rd7+ (28. Qb3 Red8 $16) 28... Re7 29. Qf4 $16) 26. Qf6+ {[%emt 0:13:52]} ({Better is} 26. Qc3 $1 $18) 26... Qxf6 $16 {[%emt 0:01:40] White is better.} 27. exf6+ {[%emt 0:00:14]} Kxf6 {[%emt 0:00:07]} 28. cxd5 {[%emt 0:00:31] Strongly threatening h4.} Rxe1 {[%emt 0:05:14]} 29. Rxe1 {[%emt 0:00:35]} cxd5 {[%emt 0:00:00] Weighted Error Value: White=0.08 (flawless) /Black=0.17 (very precise)} 1-0